bitfinex/quotes_BTCUSD_20251104
["timestamp","ask_amount","ask_price","bid_price","bid_amount"]
[1762249380266,0.14426907,104040.0,104030.0,0.0002]
[1762249380512,0.17314511,104040.0,104030.0,0.0002]
[1762249382328,1.0808086,104040.0,104030.0,0.0002]
[1762249382981,0.34,104030.0,104010.0,0.0002]
[1762249383208,0.02482,104020.0,104010.0,0.0002]
[1762249383447,0.04879,104020.0,104010.0,0.0002]
[1762249383956,0.087669,104020.0,104010.0,0.00164431]
[1762249384171,0.087669,104020.0,104010.0,0.00179018]
[1762249384384,0.38879,104020.0,104010.0,0.00179018]
[1762249385049,0.38979,104020.0,104010.0,0.19407938]
[1762249385273,0.36582,104020.0,104010.0,0.19407938]
[1762249385927,0.36782,104020.0,104010.0,0.19407938]
[1762249386895,0.42067057,104020.0,104010.0,0.19407938]
[1762249387846,0.42067057,104020.0,104010.0,0.00179018]
[1762249388062,0.08067057,104020.0,104010.0,0.00179018]
[1762249388488,0.08067057,104020.0,104010.0,0.19407938]
[1762249389378,0.003,104020.0,104010.0,0.28207166]
[1762249389603,0.0435,104020.0,104010.0,0.06662371]
[1762249389848,0.0435,104020.0,104010.0,0.25891291]
[1762249390088,0.048679,104020.0,104010.0,0.03797246]
[1762249390322,0.047679,104020.0,104010.0,0.03797246]
[1762249390542,0.047679,104020.0,104010.0,0.00279018]
[1762249390978,0.045679,104020.0,104010.0,0.00279018]
[1762249391424,0.0405,104020.0,104010.0,0.19607938]
[1762249391634,0.06937965,104020.0,104010.0,0.19607938]
[1762249391848,0.06937965,104020.0,104010.0,0.00179018]
[1762249392754,0.06937965,104020.0,104010.0,0.19407938]
[1762249392972,0.06937965,104020.0,104010.0,0.00179018]
[1762249393404,0.06937965,104020.0,104010.0,0.19407938]
[1762249393641,0.06937965,104020.0,104010.0,0.00179018]
[1762249394958,0.06937965,104020.0,104010.0,0.19407938]
[1762249395173,0.04540965,104020.0,104010.0,0.19407938]
[1762249395808,0.07025965,104020.0,104010.0,0.19407938]
[1762249399126,0.38138,104020.0,104010.0,0.19407938]
[1762249399765,0.35653,104020.0,104010.0,0.23026166]
[1762249399967,0.35653,104020.0,104010.0,0.24187166]
[1762249400166,0.01653,104020.0,104010.0,0.24187166]
[1762249400397,0.04138,104020.0,104010.0,0.23026166]
[1762249401217,0.03716965,104030.0,104020.0,0.19227071]
[1762249401576,0.01789979,104030.0,104020.0,0.39297331]
[1762249402005,0.00829,104040.0,104030.0,0.22843451]
[1762249402216,0.05506416,104050.0,104040.0,0.22841603]
[1762249402450,0.0261951,104050.0,104040.0,0.36798635]
[1762249403127,0.0416751,104050.0,104040.0,0.1603126]
[1762249403337,0.0665251,104050.0,104040.0,0.3238951]
[1762249407022,0.0179051,104050.0,104040.0,0.3642851]
[1762249407274,0.0179051,104050.0,104040.0,0.39293635]
[1762249407521,0.0179051,104050.0,104040.0,0.39593635]
[1762249408552,0.05973745,104070.0,104060.0,0.22837908]
[1762249408818,0.07767518,104070.0,104060.0,0.22837908]
[1762249409084,0.09315518,104070.0,104060.0,0.22837908]
[1762249409427,0.09315518,104070.0,104040.0,0.3003245]
[1762249409631,0.05282518,104070.0,104050.0,0.03618228]
[1762249409860,0.02367,104060.0,104050.0,0.2283962]
[1762249410126,0.02367,104060.0,104040.0,0.29846993]
[1762249410127,0.05806773,104060.0,104040.0,0.29846993]
[1762249410356,0.01646,104050.0,104040.0,0.33365221]
[1762249410806,0.03439773,104050.0,104040.0,0.33365221]
[1762249411452,0.05806773,104050.0,104040.0,0.33365221]
[1762249411880,0.05806773,104050.0,104040.0,0.33465221]
[1762249412530,0.03439773,104050.0,104040.0,0.33465221]
[1762249413170,0.05806773,104050.0,104040.0,0.33465265]
[1762249413585,0.05806773,104050.0,104040.0,0.13280722]
[1762249413792,0.05806773,104050.0,104040.0,0.13480722]
[1762249414404,0.05806773,104050.0,104040.0,0.32704097]
[1762249415354,0.05806773,104050.0,104040.0,0.38013129]
[1762249415554,0.05806773,104050.0,104040.0,0.32704097]
[1762249416034,0.05806773,104050.0,104040.0,0.03932815]
[1762249416249,0.39806773,104050.0,104040.0,0.00314587]
[1762249416472,0.68576208,104050.0,104040.0,0.00314587]
[1762249416686,1.41229847,104050.0,104010.0,0.0002]
[1762249416888,0.02475,104020.0,104010.0,0.00034597]
[1762249417302,0.04842,104020.0,104010.0,0.00034597]
[1762249417518,0.38842,104020.0,104010.0,0.00034597]
[1762249417724,0.39855301,104020.0,104010.0,0.00034597]
[1762249418144,0.39855301,104020.0,104010.0,0.00134597]
[1762249418572,0.59082372,104020.0,104010.0,0.00334597]
[1762249418789,0.6087529,104020.0,104010.0,0.00334597]
[1762249419010,0.41648219,104020.0,104010.0,0.00334597]
[1762249419428,0.6087529,104020.0,104010.0,0.00334597]
[1762249419636,1.30641331,104020.0,104010.0,0.00134597]
[1762249419840,1.30641331,104020.0,104000.0,0.0002]
[1762249419841,0.41648219,104020.0,104000.0,0.0002]
[1762249420052,0.38842,104010.0,104000.0,0.0002]
[1762249421336,0.38842,104010.0,104000.0,0.0012]
[1762249421759,0.41730552,104010.0,104000.0,0.0012]
[1762249423018,0.41730552,104010.0,104000.0,0.0022]
[1762249423866,0.39363552,104010.0,104000.0,0.24992073]
[1762249424094,0.36475,104010.0,104000.0,0.23068997]
[1762249424296,0.38842,104010.0,104000.0,0.23068997]
[1762249424517,0.38842,104010.0,104000.0,0.03838228]
[1762249424989,0.38842,104010.0,104000.0,0.23068997]
[1762249427193,0.38842,104010.0,104000.0,0.32616904]
[1762249427396,0.02475,104010.0,104000.0,0.32785426]
[1762249427596,0.04823,104010.0,104000.0,0.32785426]
[1762249428034,0.0474499,104020.0,104010.0,0.22847148]
[1762249428279,0.01856866,104020.0,104010.0,0.22847148]
[1762249428513,0.05722866,104020.0,104010.0,0.22991581]
[1762249429340,0.05822866,104020.0,104010.0,0.22991581]
[1762249430042,0.05922866,104020.0,104010.0,0.22991581]
[1762249431479,0.05922866,104020.0,104010.0,0.03762661]
[1762249436562,0.05922866,104020.0,104010.0,0.22991581]
[1762249439111,0.02561565,104020.0,104010.0,0.25836581]
[1762249439308,0.00214565,104020.0,104010.0,0.28239581]
[1762249439871,0.03880565,104020.0,104010.0,0.22991581]
[1762249440276,0.03880565,104020.0,104010.0,0.23091581]
[1762249441132,0.04864465,104020.0,104010.0,0.23091581]
[1762249441885,0.05722587,104020.0,104010.0,0.23091581]
[1762249443408,0.06438587,104020.0,104010.0,0.23091581]
[1762249443606,0.06438587,104020.0,104010.0,0.03862661]
[1762249443836,0.06438587,104020.0,104010.0,0.00244433]
[1762249444034,0.40438587,104020.0,104010.0,0.00244433]
[1762249444234,0.40389321,104020.0,104010.0,0.00244433]
[1762249444815,0.39531199,104020.0,104010.0,0.19373353]
[1762249445062,0.05531199,104020.0,104010.0,0.00144433]
[1762249445279,0.05631199,104020.0,104010.0,0.00144433]
[1762249445883,0.05731199,104020.0,104010.0,0.00144433]
[1762249446083,0.05731199,104020.0,104010.0,0.19373353]
[1762249446299,0.00916,104020.0,104010.0,0.33574763]
[1762249446512,0.00916,104020.0,104010.0,0.38754614]
[1762249446920,0.002,104020.0,104010.0,0.38754614]
[1762249447131,0.002,104020.0,104010.0,0.4155535]
[1762249447348,0.001,104020.0,104010.0,0.4155535]
[1762249447560,0.001,104020.0,104010.0,0.4165535]
[1762249447765,0.00829,104030.0,104020.0,0.19227071]
[1762249447999,9.345e-05,104030.0,104020.0,0.42623448]
[1762249448223,9.345e-05,104030.0,104020.0,0.47923646]
[1762249448431,0.04704345,104030.0,104020.0,0.18466333]
[1762249448644,0.04704345,104030.0,104020.0,0.00120347]
[1762249448865,0.04704345,104030.0,104020.0,0.00220347]
[1762249449282,0.04704345,104030.0,104020.0,0.00120347]
[1762249449685,0.04804345,104030.0,104020.0,0.00120347]
[1762249449910,0.04904345,104030.0,104020.0,0.00120347]
[1762249450113,0.04904345,104030.0,104020.0,0.19347418]
[1762249450575,0.04804345,104030.0,104020.0,0.00120347]
[1762249450772,0.07692074,104030.0,104020.0,0.19347418]
[1762249451323,0.07792074,104030.0,104020.0,0.19347418]
[1762249453113,0.07792074,104030.0,104020.0,0.32513553]
[1762249453971,0.00209345,104030.0,104020.0,0.42488081]
[1762249454144,0.01038345,104030.0,104020.0,0.34152553]
[1762249454445,0.02556345,104030.0,104020.0,0.32513553]
[1762249454750,0.02456345,104030.0,104020.0,0.32513553]
[1762249454960,0.02456345,104030.0,104020.0,0.32613553]
[1762249455184,0.02356345,104030.0,104020.0,0.32613553]
[1762249455370,0.04844345,104030.0,104020.0,0.13386482]
[1762249455595,0.04844345,104030.0,104020.0,0.32613553]
[1762249457030,0.04844345,104030.0,104020.0,0.3607433]
[1762249458410,0.38844345,104030.0,104020.0,0.3607433]
[1762249459314,0.02356345,104030.0,104020.0,0.3607433]
[1762249460394,0.00838345,104030.0,104020.0,0.4004033]
[1762249460793,0.00838345,104030.0,104020.0,0.45220181]
[1762249461149,0.00838345,104030.0,104020.0,0.42813181]
[1762249461350,0.00838345,104030.0,104020.0,0.49258086]
[1762249461766,0.02476345,104030.0,104020.0,0.41254181]
[1762249461971,0.04964345,104030.0,104020.0,0.16847259]
[1762249462571,0.04964345,104030.0,104020.0,0.3607433]
[1762249463007,0.00838345,104030.0,104020.0,0.4004033]
[1762249463210,9.345e-05,104030.0,104020.0,0.45220181]
[1762249463942,9.345e-05,104030.0,104020.0,0.4004033]
[1762249464912,9.345e-05,104030.0,104020.0,0.43819544]
[1762249466523,9.345e-05,104030.0,104020.0,0.4004033]
[1762249466740,9.345e-05,104030.0,104020.0,0.20813259]
[1762249466967,0.00838345,104030.0,104020.0,0.3763333]
[1762249467320,0.00838345,104030.0,104020.0,0.18406259]
[1762249467556,0.00838345,104030.0,104020.0,0.4004033]
[1762249468594,0.00838345,104030.0,104020.0,0.16847259]
[1762249469897,0.00838345,104030.0,104020.0,0.07299352]
[1762249470124,0.02407345,104030.0,104020.0,0.03838575]
[1762249470529,0.36407345,104030.0,104020.0,0.03838575]
[1762249471565,0.39294893,104030.0,104020.0,0.03838575]
[1762249471968,0.41736893,104030.0,104020.0,0.03838575]
[1762249472186,0.07736893,104030.0,104020.0,0.00220347]
[1762249472355,0.172848,104030.0,104020.0,0.00220347]
[1762249473100,0.36510023,104030.0,104020.0,0.00220347]
[1762249473477,0.172848,104030.0,104020.0,0.00220347]
[1762249473630,0.07736893,104030.0,104020.0,0.00120347]
[1762249473838,0.172848,104030.0,104020.0,0.00120347]
[1762249474356,1.08166201,104030.0,104020.0,0.00120347]
[1762249474553,1.2738562,104030.0,104020.0,0.00120347]
[1762249475023,1.2748562,104030.0,104020.0,0.00120347]
[1762249476498,0.88655203,104030.0,104020.0,0.00120347]
[1762249476673,1.10768683,104030.0,104020.0,0.00120347]
[1762249476976,0.9154346,104030.0,104020.0,0.00120347]
[1762249477195,1.10768683,104030.0,104020.0,0.00120347]
[1762249477594,0.9154346,104030.0,104020.0,0.00120347]
[1762249477989,1.10768683,104030.0,104020.0,0.00120347]
[1762249479705,0.9154346,104030.0,104020.0,0.00120347]
[1762249480059,1.10768683,104030.0,104020.0,0.00120347]
[1762249480482,1.36220286,104030.0,104020.0,0.00120347]
[1762249482829,1.16995063,104030.0,104020.0,0.00120347]
[1762249483442,0.96216883,104030.0,104020.0,0.00120347]
[1762249484088,0.7699166,104030.0,104020.0,0.00120347]
[1762249484289,0.96216883,104030.0,104020.0,0.00120347]
[1762249484484,0.98013025,104030.0,104020.0,0.00120347]
[1762249485905,0.78787802,104030.0,104020.0,0.00120347]
[1762249486570,0.98013025,104030.0,104020.0,0.00120347]
[1762249488593,0.98013025,104030.0,104000.0,0.0002]
[1762249488594,0.53228635,104020.0,104000.0,0.0002]
[1762249488797,1.0278023,104010.0,104000.0,0.0002]
[1762249489389,1.45672366,104010.0,104000.0,0.0002]
[1762249489695,1.05668963,104010.0,104000.0,0.0002]
[1762249490182,1.45672366,104010.0,104000.0,0.0002]
[1762249490610,0.74003403,103990.0,103980.0,0.0002]
[1762249491197,0.9612501,103990.0,103980.0,0.0002]
[1762249491825,0.9612501,103990.0,103980.0,0.0006869]
[1762249492429,0.9612501,103990.0,103980.0,0.0026869]
[1762249493061,0.76892392,103990.0,103980.0,0.0026869]
[1762249493442,0.76892392,103990.0,103980.0,0.0006869]
[1762249494357,0.9612501,103990.0,103980.0,0.0006869]
[1762249494760,0.76892392,103990.0,103980.0,0.0006869]
[1762249495051,0.76892392,103990.0,103980.0,0.00165031]
[1762249496216,0.36888989,103990.0,103980.0,0.00165031]
[1762249498310,0.02888989,103990.0,103980.0,0.21322945]
[1762249498507,0.02888989,103990.0,103980.0,0.00165031]
[1762249498826,0.02888989,103990.0,103980.0,0.21322945]
[1762249499539,0.02888989,103990.0,103980.0,0.19399499]
[1762249500870,0.02888989,103990.0,103980.0,0.20540499]
[1762249501269,0.34,104000.0,103980.0,0.37716634]
[1762249501492,0.36888482,104000.0,103990.0,0.21155879]
[1762249501677,0.02888482,104000.0,103990.0,0.19232618]
[1762249501910,0.02888482,104000.0,103990.0,0.22850846]
[1762249502130,0.09547907,104030.0,104000.0,0.03618228]
[1762249502334,0.09547907,104030.0,104000.0,0.24758966]
[1762249502335,0.36888151,104020.0,104000.0,0.24758966]
[1762249502536,0.02888151,104020.0,104000.0,0.24758966]
[1762249502683,0.02888151,104020.0,104000.0,0.03618228]
[1762249502890,0.02888151,104020.0,104000.0,0.22848909]
[1762249503312,0.02888151,104020.0,104000.0,0.03618228]
[1762249503532,0.02888151,104020.0,103990.0,0.03618228]
[1762249503734,0.43547907,104010.0,103980.0,0.34572016]
[1762249503976,0.36888151,104020.0,103990.0,0.19232587]
[1762249504127,0.56315245,104020.0,103980.0,0.37054016]
[1762249504347,0.56315245,104020.0,103980.0,0.16857825]
[1762249504348,0.56115245,104020.0,103980.0,0.16857825]
[1762249504537,0.28776853,104010.0,103980.0,0.09616597]
[1762249504819,0.34,104000.0,103980.0,0.09616597]
[1762249505434,0.53230785,104000.0,103980.0,0.0006869]
[1762249505648,1.1961627,103990.0,103980.0,0.0006869]
[1762249505853,1.22505392,103990.0,103980.0,0.0006869]
[1762249506300,0.65669647,103990.0,103980.0,0.0026869]
[1762249506700,1.10070213,103980.0,103960.0,0.05179851]
[1762249506904,0.09547907,103970.0,103960.0,9.345e-05]
[1762249507672,0.43547907,103970.0,103960.0,9.345e-05]
[1762249507875,0.34,103970.0,103960.0,9.345e-05]
[1762249508221,0.34,103970.0,103960.0,0.00153884]
[1762249508451,0.34,103970.0,103960.0,0.00353884]
[1762249508452,0.33892046,103970.0,103960.0,0.00353884]
[1762249508664,0.89467033,103990.0,103960.0,0.00353884]
[1762249508872,0.19234649,103980.0,103960.0,0.00209345]
[1762249509108,0.28784225,103970.0,103960.0,0.00609345]
[1762249509318,0.09547907,103970.0,103960.0,0.00609345]
[1762249509548,0.09547907,103970.0,103960.0,0.00209345]
[1762249509779,0.09547907,103970.0,103960.0,9.345e-05]
[1762249510018,0.56835745,103980.0,103960.0,9.345e-05]
[1762249510252,0.89467033,103990.0,103960.0,0.00109345]
[1762249510483,0.34,103980.0,103960.0,9.345e-05]
[1762249510756,0.34,103980.0,103960.0,0.00309345]
[1762249510969,0.02889122,103990.0,103970.0,0.01141]
[1762249511178,0.02889122,103990.0,103970.0,0.22300901]
[1762249511409,0.56835745,104010.0,103970.0,0.23262716]
[1762249511644,0.34,104000.0,103970.0,0.23262716]
[1762249511842,0.12436704,104000.0,103970.0,0.23262716]
[1762249512244,0.12436704,104000.0,103980.0,0.19234273]
[1762249512450,0.001,103990.0,103970.0,0.21339085]
[1762249512669,0.001,103990.0,103980.0,0.34324049]
[1762249512902,0.001,103990.0,103980.0,0.32400603]
[1762249513146,0.77024259,104020.0,103980.0,0.33362326]
[1762249513367,0.88501202,104010.0,103970.0,0.05179851]
[1762249513580,0.90835745,104000.0,103970.0,0.2441616]
[1762249513788,0.34,104000.0,103970.0,0.19236309]
[1762249514003,0.34,104000.0,103970.0,0.22853733]
[1762249514219,0.34,104000.0,103970.0,0.23815548]
[1762249514442,0.342,104000.0,103980.0,0.20506491]
[1762249514648,0.342,104000.0,103980.0,0.19234389]
[1762249514859,0.342,104000.0,103970.0,0.23815548]
[1762249515070,0.02888922,103990.0,103970.0,0.23815548]
[1762249515288,0.02888922,103990.0,103980.0,0.20488917]
[1762249515507,0.02888922,103990.0,103980.0,0.19234468]
[1762249515731,0.342,104000.0,103980.0,0.19234468]
[1762249515732,0.002,104000.0,103980.0,0.19234468]
[1762249515939,0.03088633,104000.0,103980.0,0.19234468]
[1762249516174,0.02888633,104000.0,103980.0,0.19234468]
[1762249516392,0.02988633,104000.0,103980.0,0.03618228]
[1762249516601,0.02888633,104000.0,103980.0,0.2285253]
[1762249516815,0.02988633,104000.0,103980.0,0.2285253]
[1762249517953,0.02988633,104000.0,103960.0,0.19336811]
[1762249517954,0.2401611,104000.0,103960.0,0.19336811]
[1762249518169,0.2401611,104000.0,103960.0,0.39536759]
[1762249518170,0.43547907,103990.0,103960.0,0.39536759]
[1762249518392,0.4643691,103990.0,103960.0,0.34356908]
[1762249518827,0.02889003,103990.0,103970.0,0.19235516]
[1762249519041,0.02889003,103990.0,103980.0,0.19234468]
[1762249519678,0.34,104000.0,103980.0,0.19234468]
[1762249519892,0.43547907,104010.0,103980.0,0.20196191]
[1762249520109,0.02888783,104000.0,103980.0,0.20196191]
[1762249520321,0.02888783,104000.0,103990.0,0.01923261]
[1762249520738,0.02888783,104000.0,103990.0,0.0199551]
[1762249520961,0.02988783,104000.0,103990.0,0.0199551]
[1762249521170,0.02888783,104000.0,103990.0,0.00072249]
[1762249521596,0.02888783,104000.0,103990.0,0.0199551]
[1762249522434,0.02988783,104000.0,103990.0,0.0199551]
[1762249522857,0.02888783,104000.0,103990.0,0.0199551]
[1762249523067,0.02888783,104000.0,103990.0,0.21228128]
[1762249523273,0.02888783,104000.0,103990.0,0.19304867]
[1762249523711,0.02888783,104000.0,103990.0,0.00072249]
[1762249523947,0.02888783,104000.0,103990.0,0.21228128]
[1762249524155,0.02888783,104000.0,103990.0,0.00072249]
[1762249524332,0.02888783,104000.0,103990.0,0.0199551]
[1762249525933,0.02888783,104000.0,103990.0,0.00072249]
[1762249526155,0.34,103990.0,103970.0,0.03458708]
[1762249526580,0.34,103990.0,103970.0,0.07076936]
[1762249526786,0.34,103990.0,103980.0,0.00024088]
[1762249527811,0.33898075,103990.0,103980.0,0.00024088]
[1762249528468,0.19230878,104000.0,103980.0,0.00024088]
[1762249528667,0.02888891,103990.0,103980.0,0.00024088]
[1762249530034,0.03879775,103990.0,103980.0,0.00024088]
[1762249530237,0.03879775,103990.0,103980.0,0.01947534]
[1762249530734,0.03879775,103990.0,103980.0,0.21182002]
[1762249530955,0.07667753,103990.0,103980.0,0.19258556]
[1762249531159,0.03879775,103990.0,103980.0,0.19258556]
[1762249532889,0.03879775,103990.0,103980.0,0.32424691]
[1762249533091,0.00990884,103990.0,103980.0,0.32424691]
[1762249533295,0.02888563,104000.0,103990.0,0.19232618]
[1762249533695,0.99610945,104030.0,103990.0,0.20194248]
[1762249533952,0.3153238,104030.0,103990.0,0.20194248]
[1762249534090,0.34,104010.0,103990.0,0.20194248]
[1762249534289,0.34,104010.0,103980.0,0.36945122]
[1762249534971,0.34,104010.0,103990.0,0.19232594]
[1762249535176,0.34,104010.0,103980.0,0.36845122]
[1762249535378,0.34,104010.0,103990.0,0.19232614]
[1762249536000,0.341,104010.0,104000.0,0.19230769]
[1762249536261,0.001,104010.0,104000.0,0.22848997]
[1762249536523,0.001,104010.0,104000.0,0.32396904]
[1762249536736,0.09547907,104030.0,104000.0,0.32396904]
[1762249536980,0.36887993,104020.0,104000.0,0.32396872]
[1762249537201,0.38734559,104020.0,104000.0,0.32396872]
[1762249537394,0.38734559,104020.0,104010.0,0.1922892]
[1762249537642,0.04734559,104020.0,104010.0,0.22847148]
[1762249537860,0.00048615,104020.0,104010.0,0.22847148]
[1762249538291,0.00048615,104020.0,104010.0,0.28009727]
[1762249539117,0.00148615,104020.0,104010.0,0.28009727]
[1762249539742,0.00148615,104020.0,104010.0,0.22847148]
[1762249540163,0.00348615,104020.0,104010.0,0.22847148]
[1762249541277,0.00048615,104020.0,104010.0,0.22847148]
[1762249541490,0.00048615,104020.0,104010.0,0.03618228]
[1762249541707,0.00048615,104020.0,104010.0,0.23147148]
[1762249541932,0.00048615,104020.0,104010.0,0.03918228]
[1762249543245,0.02936408,104020.0,104010.0,0.23147148]
[1762249543463,0.02936408,104020.0,104010.0,0.2833972]
[1762249543938,0.00048615,104020.0,104010.0,0.23147148]
[1762249544154,0.00048615,104020.0,104010.0,0.03918228]
[1762249545122,0.00048615,104020.0,104000.0,0.09547907]
[1762249546172,0.20237306,104020.0,103990.0,0.03618228]
[1762249546376,0.00048615,104020.0,103990.0,0.22850812]
[1762249546686,0.192757,104020.0,104000.0,0.002]
[1762249546972,0.21071624,104020.0,104000.0,0.002]
[1762249547173,0.21071624,104020.0,103990.0,0.03618228]
[1762249547376,0.21071643,104020.0,103990.0,0.03618228]
[1762249547694,0.01844539,104020.0,103990.0,0.22850806]
[1762249547898,0.01844539,104020.0,103990.0,0.23812436]
[1762249548098,0.00248615,104020.0,103990.0,0.23812436]
[1762249548314,0.00248615,104020.0,104000.0,0.19230768]
[1762249548531,0.0214502,104020.0,104000.0,0.19230768]
[1762249548777,0.02888171,104010.0,104000.0,0.19230768]
[1762249549415,0.02888171,104010.0,103990.0,0.03618228]
[1762249549623,0.02888171,104010.0,104000.0,0.19230769]
[1762249549835,0.02888171,104010.0,103990.0,0.22850585]
[1762249550466,0.02988171,104010.0,103990.0,0.25108585]
[1762249550672,0.02988171,104010.0,104000.0,0.19230769]
[1762249550898,0.001,104010.0,104000.0,0.19230769]
[1762249551177,0.02988171,104010.0,104000.0,0.36252904]
[1762249551572,0.001,104010.0,104000.0,0.13166135]
[1762249551813,0.02988046,104010.0,104000.0,0.13166135]
[1762249552459,0.02888046,104010.0,104000.0,0.13166135]
[1762249552672,0.03088046,104010.0,104000.0,0.13166135]
[1762249553095,0.02988046,104010.0,104000.0,0.13166135]
[1762249553328,0.02888046,104010.0,104000.0,0.13266135]
[1762249553541,0.02888046,104010.0,104000.0,0.13366135]
[1762249554198,0.02888046,104010.0,104000.0,0.32596904]
[1762249554834,0.06581712,104010.0,104000.0,0.002]
[1762249555051,0.02888046,104010.0,104000.0,0.19430769]
[1762249555254,0.02888046,104010.0,104000.0,0.30297618]
[1762249555470,0.02888046,104010.0,104000.0,0.28978676]
[1762249556111,0.02888046,104010.0,104000.0,0.32596904]
[1762249557170,0.02888046,104010.0,104000.0,0.13366135]
[1762249557378,0.02888046,104010.0,104000.0,0.15289211]
[1762249557596,0.02888046,104010.0,104000.0,0.3451998]
[1762249557797,0.02888046,104010.0,104000.0,0.32596904]
[1762249558943,0.02888046,104010.0,104000.0,0.36452904]
[1762249560421,0.02888046,104010.0,104000.0,0.03818228]
[1762249560626,0.02888046,104010.0,104000.0,0.23048997]
[1762249560834,0.00048615,104020.0,104000.0,0.32596904]
[1762249561024,0.02936589,104020.0,104000.0,0.13366135]
[1762249561251,0.04185039,104020.0,104000.0,0.13366135]
[1762249561699,0.04185039,104020.0,104000.0,0.13266135]
[1762249562116,0.03036589,104020.0,104010.0,0.01922892]
[1762249562986,0.03036589,104020.0,104010.0,0.24445148]
[1762249563189,0.00248615,104020.0,104010.0,0.26703148]
[1762249563327,0.00148615,104020.0,104010.0,0.26703148]
[1762249563534,0.00148615,104020.0,104010.0,0.26305856]
[1762249563738,0.00248615,104020.0,104010.0,0.3233229]
[1762249564158,0.00248615,104020.0,104010.0,0.26305856]
[1762249564363,0.00148615,104020.0,104010.0,0.07076936]
[1762249564559,0.00148615,104020.0,104010.0,0.07176936]
[1762249564967,0.00148615,104020.0,104010.0,0.28243708]
[1762249565177,0.00048615,104020.0,104010.0,0.26405856]
[1762249565575,0.00048615,104020.0,104010.0,0.28103856]
[1762249565784,0.00048615,104020.0,104010.0,0.08874936]
[1762249566162,0.00048615,104020.0,104010.0,0.30026748]
[1762249566372,0.00048615,104020.0,104010.0,0.39057668]
[1762249566585,0.00048615,104020.0,104010.0,0.63859057]
[1762249566863,0.00048615,104020.0,104010.0,0.60400349]
[1762249567053,0.00048615,104020.0,104010.0,0.60056003]
[1762249567255,0.00048615,104020.0,104010.0,0.61056002]
[1762249567663,0.00048615,104020.0,104010.0,0.60956002]
[1762249567785,0.00048615,104020.0,104010.0,0.57498958]
[1762249568010,0.00048615,104020.0,104010.0,0.57898958]
[1762249568207,0.00048615,104020.0,104010.0,0.46722999]
[1762249568419,0.00048615,104020.0,104010.0,0.30848947]
[1762249568627,0.00048615,104020.0,104010.0,0.25969096]
[1762249568834,0.00048615,104020.0,104010.0,0.26469096]
[1762249569250,0.00048615,104020.0,104010.0,0.22350868]
[1762249569487,0.00048615,104020.0,104010.0,0.22214228]
[1762249569696,0.00048615,104020.0,104010.0,0.22514228]
[1762249569902,0.00048615,104020.0,104010.0,0.05516228]
[1762249570118,0.00048615,104020.0,104010.0,0.3573093]
[1762249570344,0.00048615,104020.0,104010.0,0.30894974]
[1762249570554,0.00048615,104020.0,104010.0,0.26602016]
[1762249570765,0.00048615,104020.0,104010.0,0.26702016]
[1762249570966,0.00048615,104020.0,104010.0,0.31881867]
[1762249571628,0.00048615,104020.0,104010.0,0.34683258]
[1762249571841,0.00048615,104020.0,104010.0,0.36281258]
[1762249572064,0.00048615,104020.0,104010.0,0.43904887]
[1762249572485,0.00048615,104020.0,104010.0,0.46162887]
[1762249572899,0.00048615,104020.0,104010.0,0.43904887]
[1762249573524,0.00048615,104020.0,104010.0,0.46162887]
[1762249573742,0.00048615,104020.0,104010.0,0.47162886]
[1762249575070,0.00048615,104020.0,104010.0,0.46162887]
[1762249575293,0.00048615,104020.0,104010.0,0.47162886]
[1762249577586,0.02886898,104060.0,104040.0,0.03618228]
[1762249577804,0.02896247,104060.0,104040.0,0.03618228]
[1762249578048,0.02896247,104060.0,104040.0,0.04836228]
[1762249578278,0.02896247,104060.0,104040.0,0.07089228]
[1762249578991,0.03696247,104060.0,104040.0,0.07089228]
[1762249579248,0.03696247,104060.0,104040.0,0.03471]
[1762249579668,0.03196247,104060.0,104040.0,0.07089228]
[1762249580091,0.03496247,104060.0,104040.0,0.07089228]
[1762249580300,0.03196247,104060.0,104040.0,0.04836228]
[1762249580519,0.03396247,104060.0,104040.0,0.04836228]
[1762249580729,0.03396247,104060.0,104040.0,0.03618228]
[1762249580934,0.03196247,104060.0,104040.0,0.03618228]
[1762249581161,0.0018483,104050.0,104040.0,0.03618228]
[1762249582296,0.0038483,104050.0,104040.0,0.03618228]
[1762249582521,0.03271728,104050.0,104040.0,0.03618228]
[1762249582729,0.03571728,104050.0,104030.0,0.09547907]
[1762249582934,0.41145006,104050.0,104030.0,0.09547907]
[1762249583984,0.40945006,104050.0,104020.0,0.03618228]
[1762249584192,0.57279733,104050.0,104020.0,0.13166135]
[1762249584404,0.36887279,104040.0,104020.0,0.13166135]
[1762249585680,0.36987279,104040.0,104020.0,0.13166135]
[1762249585893,0.38143905,104040.0,104020.0,0.13166135]
[1762249587108,0.38143905,104040.0,104020.0,0.15419135]
[1762249587316,0.04143905,104040.0,104020.0,0.13166135]
[1762249587526,0.02987279,104040.0,104020.0,0.15419135]
[1762249587951,0.02987279,104040.0,104020.0,0.13166135]
[1762249588161,0.03148052,104040.0,104020.0,0.15419135]
[1762249588374,0.03087279,104040.0,104020.0,0.15419135]
[1762249588579,0.03087279,104040.0,104030.0,0.01218]
[1762249588799,0.03087279,104040.0,104030.0,0.02718]
[1762249589003,0.03248052,104040.0,104030.0,0.02718]
[1762249589420,0.03148052,104040.0,104030.0,0.02718]
[1762249589626,0.03048052,104040.0,104030.0,0.02718]
[1762249589831,0.03248052,104040.0,104030.0,0.02718]
[1762249590246,0.03248052,104040.0,104020.0,0.15419135]
[1762249590459,0.03087279,104040.0,104020.0,0.15419135]
[1762249591064,0.02987279,104040.0,104020.0,0.15419135]
[1762249591292,0.02887279,104040.0,104020.0,0.15419135]
[1762249591502,0.002,104040.0,104020.0,0.15419135]
[1762249591715,0.002,104040.0,104020.0,0.30159135]
[1762249592373,0.002,104040.0,104030.0,0.01185]
[1762249592621,0.4018065,104040.0,104030.0,0.02828]
[1762249592827,0.19226306,104030.0,104010.0,0.01218]
[1762249593065,0.99188371,104020.0,104000.0,0.01185]
[1762249593324,0.68757564,104010.0,103990.0,0.01143]
[1762249593550,0.7398065,104000.0,103990.0,0.01143]
[1762249593771,1.33192069,104000.0,103980.0,0.05203939]
[1762249593987,0.7398065,103990.0,103980.0,0.00024088]
[1762249594203,0.73985506,103990.0,103980.0,0.00024088]
[1762249594428,0.34004856,103990.0,103980.0,0.01667088]
[1762249594633,1.19636566,103990.0,103980.0,0.00024088]
[1762249595505,1.19736566,103990.0,103980.0,0.00024088]
[1762249595945,1.19836566,103990.0,103980.0,0.00024088]
[1762249596158,1.19736566,103990.0,103980.0,0.00024088]
[1762249596604,1.20036566,103990.0,103980.0,0.00024088]
[1762249597322,1.19936566,103990.0,103980.0,0.00024088]
[1762249597533,1.20436566,103990.0,103980.0,0.00024088]
[1762249597742,1.20136566,103990.0,103980.0,0.00024088]
[1762249598155,0.86536566,103990.0,103980.0,0.00024088]
[1762249598612,0.86036566,103990.0,103980.0,0.00024088]
[1762249599704,0.66803948,103990.0,103980.0,0.00024088]